[Event "Early-Titled-Tuesday-Blitz-January-30-2024"]
[Site "Chess.com"]
[Date "2024.01.30"]
[Round "5"]
[White "mishanick"]
[Black "AlexeiShirov"]
[Result "1-0"]
[WhiteElo "3141"]
[BlackElo "2753"]
[TimeControl "180+1"]
[EndTime "8:59:18 PST"]
[Termination "mishanick won by resignation"]

1. d4 {[%clk 0:03:00.9]} 1... d5 {[%clk 0:03:00]} 2. c4 {[%clk 0:03:01.6]} 2...
c6 {[%clk 0:03:00]} 3. Nc3 {[%clk 0:03:02.3]} 3... Nf6 {[%clk 0:02:59.9]} 4. Nf3
{[%clk 0:03:02.9]} 4... e6 {[%clk 0:03:00.1]} 5. e3 {[%clk 0:03:03.1]} 5... Nbd7
{[%clk 0:02:59.3]} 6. Qc2 {[%clk 0:03:03.8]} 6... Bd6 {[%clk 0:02:59.1]} 7. Be2
{[%clk 0:03:04.6]} 7... O-O {[%clk 0:02:58.5]} 8. O-O {[%clk 0:03:05]} 8... dxc4
{[%clk 0:02:58.6]} 9. Bxc4 {[%clk 0:03:05.9]} 9... b5 {[%clk 0:02:58.7]} 10. Bd3
{[%clk 0:03:05.2]} 10... Bb7 {[%clk 0:02:57.6]} 11. e4 {[%clk 0:03:05.2]} 11...
e5 {[%clk 0:02:57]} 12. Bg5 {[%clk 0:03:05.2]} 12... h6 {[%clk 0:02:34.6]} 13.
Bh4 {[%clk 0:03:04.2]} 13... Qc7 {[%clk 0:02:25.9]} 14. Kh1 {[%clk 0:02:46.6]}
14... Nh5 {[%clk 0:02:20]} 15. Rac1 {[%clk 0:02:31.9]} 15... Rac8 {[%clk
0:02:16.3]} 16. Qd1 {[%clk 0:02:23.3]} 16... Qb6 {[%clk 0:01:57.2]} 17. dxe5
{[%clk 0:02:22.5]} 17... Bxe5 {[%clk 0:01:53.4]} 18. Bb1 {[%clk 0:01:43.4]}
18... Bxc3 {[%clk 0:01:22.7]} 19. Rxc3 {[%clk 0:01:43]} 19... Ndf6 {[%clk
0:01:18.4]} 20. e5 {[%clk 0:01:36.7]} 20... Nd5 {[%clk 0:01:16.4]} 21. Rd3
{[%clk 0:01:25.6]} 21... Nhf4 {[%clk 0:01:15]} 22. Rd2 {[%clk 0:01:25.9]} 22...
Rfe8 {[%clk 0:01:09]} 23. Qc2 {[%clk 0:01:19.4]} 23... Ng6 {[%clk 0:01:07.2]}
24. Bg3 {[%clk 0:01:20.1]} 24... c5 {[%clk 0:01:05.3]} 25. h4 {[%clk 0:01:20.7]}
25... Nb4 {[%clk 0:01:04.7]} 26. Qf5 {[%clk 0:01:20]} 26... Qe6 {[%clk
0:01:01.5]} 27. h5 {[%clk 0:01:17.9]} 27... Nf8 {[%clk 0:01:00.7]} 28. a3 {[%clk
0:01:13.5]} 28... Nc6 {[%clk 0:00:57.9]} 29. Qc2 {[%clk 0:01:08.4]} 29... c4
{[%clk 0:00:56.8]} 30. Rfd1 {[%clk 0:01:01.9]} 30... Qg4 {[%clk 0:00:55.7]} 31.
Qf5 {[%clk 0:01:02.1]} 31... Qxf5 {[%clk 0:00:54.9]} 32. Bxf5 {[%clk 0:01:03]}
32... Rcd8 {[%clk 0:00:54.7]} 33. Rxd8 {[%clk 0:00:36.3]} 33... Rxd8 {[%clk
0:00:54.3]} 34. Rxd8 {[%clk 0:00:36]} 34... Nxd8 {[%clk 0:00:54.1]} 35. Nd4
{[%clk 0:00:36.4]} 35... a6 {[%clk 0:00:54.1]} 36. Bc2 {[%clk 0:00:36.5]} 36...
Nfe6 {[%clk 0:00:53.1]} 37. Nf5 {[%clk 0:00:36.9]} 37... Nc6 {[%clk 0:00:51.8]}
38. Nd6 {[%clk 0:00:35]} 38... Ncd4 {[%clk 0:00:45.9]} 39. Bd1 {[%clk
0:00:35.2]} 39... Bd5 {[%clk 0:00:44.6]} 40. f3 {[%clk 0:00:35.4]} 40... Nc5
{[%clk 0:00:34.7]} 41. Bf2 {[%clk 0:00:35.6]} 41... Nde6 {[%clk 0:00:34.4]} 42.
Bc2 {[%clk 0:00:19.3]} 42... Nd3 {[%clk 0:00:34.5]} 43. Bxd3 {[%clk 0:00:19.6]}
43... cxd3 {[%clk 0:00:34.2]} 44. Be3 {[%clk 0:00:20.3]} 44... Nd4 {[%clk
0:00:33.9]} 45. Kg1 {[%clk 0:00:19.5]} 45... Nb3 {[%clk 0:00:23.4]} 46. Kf2
{[%clk 0:00:19.6]} 46... Na5 {[%clk 0:00:21.1]} 47. Nf5 {[%clk 0:00:15.9]} 47...
Be6 {[%clk 0:00:19.1]} 48. Nd4 {[%clk 0:00:04]} 48... Nc4 {[%clk 0:00:18.9]} 49.
b3 {[%clk 0:00:04.4]} 49... Nxa3 {[%clk 0:00:18.9]} 50. b4 {[%clk 0:00:03.9]}
50... Nc2 {[%clk 0:00:18.7]} 51. Nxc2 {[%clk 0:00:03.4]} 51... dxc2 {[%clk
0:00:18.3]} 52. Ke1 {[%clk 0:00:04.1]} 52... Bf5 {[%clk 0:00:17.3]} 53. Kd2
{[%clk 0:00:03.9]} 53... Kf8 {[%clk 0:00:17.5]} 54. g4 {[%clk 0:00:03.7]} 54...
Bh7 {[%clk 0:00:17]} 55. Kc3 {[%clk 0:00:03.9]} 55... Ke8 {[%clk 0:00:17.2]} 56.
Kd4 {[%clk 0:00:04.2]} 56... Kd7 {[%clk 0:00:17.1]} 57. f4 {[%clk 0:00:03.6]}
57... Kc6 {[%clk 0:00:14.1]} 58. f5 {[%clk 0:00:04.1]} 58... Kd7 {[%clk
0:00:14.2]} 59. Kc3 {[%clk 0:00:03.7]} 59... g6 {[%clk 0:00:14]} 60. hxg6 {[%clk
0:00:03.2]} 60... fxg6 {[%clk 0:00:14]} 61. e6+ {[%clk 0:00:03.7]} 61... Ke8
{[%clk 0:00:14.1]} 62. f6 {[%clk 0:00:03.9]} 62... Bg8 {[%clk 0:00:14.3]} 63.
f7+ {[%clk 0:00:03.8]} 63... Bxf7 {[%clk 0:00:14.5]} 64. exf7+ {[%clk
0:00:04.7]} 64... Kxf7 {[%clk 0:00:14.8]} 65. Bxh6 {[%clk 0:00:05.4]} 65... Ke6
{[%clk 0:00:14.2]} 66. Kxc2 {[%clk 0:00:05.7]} 66... Kd5 {[%clk 0:00:14.2]} 67.
Kd3 {[%clk 0:00:06.4]} 67... Ke5 {[%clk 0:00:14.1]} 68. Bd2 {[%clk 0:00:07]}
68... Kd5 {[%clk 0:00:14.2]} 69. Bf4 {[%clk 0:00:07.7]} 1-0

[Event "Early-Titled-Tuesday-Blitz-January-30-2024"]
[Site "Chess.com"]
[Date "2024.01.30"]
[Round "5"]
[White "picturesquecheck"]
[Black "toninhojit"]
[Result "0-1"]
[WhiteElo "2367"]
[BlackElo "2581"]
[TimeControl "180+1"]
[EndTime "8:59:18 PST"]
[Termination "toninhojit won by resignation"]

1. e4 {[%clk 0:03:00.9]} 1... e5 {[%clk 0:02:57.9]} 2. Nf3 {[%clk 0:02:52.6]}
2... Nc6 {[%clk 0:02:58]} 3. Nc3 {[%clk 0:02:49.1]} 3... Nf6 {[%clk 0:02:56.4]}
4. Bb5 {[%clk 0:02:47.4]} 4... Bb4 {[%clk 0:02:50.3]} 5. O-O {[%clk 0:02:46.6]}
5... O-O {[%clk 0:02:50.5]} 6. d3 {[%clk 0:02:46.3]} 6... d6 {[%clk 0:02:50.1]}
7. Ne2 {[%clk 0:02:46.5]} 7... Ne7 {[%clk 0:02:48.8]} 8. Bc4 {[%clk 0:02:44]}
8... c6 {[%clk 0:02:47.8]} 9. a3 {[%clk 0:02:43.3]} 9... Ba5 {[%clk 0:02:47.5]}
10. Ba2 {[%clk 0:02:43.2]} 10... h6 {[%clk 0:02:45.1]} 11. Ng3 {[%clk
0:02:40.6]} 11... Ng6 {[%clk 0:02:36.1]} 12. h3 {[%clk 0:02:28.9]} 12... Bb6
{[%clk 0:02:34.4]} 13. Be3 {[%clk 0:02:27.3]} 13... Be6 {[%clk 0:02:34.6]} 14.
c4 {[%clk 0:02:26]} 14... d5 {[%clk 0:01:56.7]} 15. Bxb6 {[%clk 0:02:04.2]}
15... Qxb6 {[%clk 0:01:57.6]} 16. b4 {[%clk 0:02:02.5]} 16... dxc4 {[%clk
0:01:48]} 17. dxc4 {[%clk 0:02:01.8]} 17... Rad8 {[%clk 0:01:42.2]} 18. Qc2
{[%clk 0:01:54.1]} 18... c5 {[%clk 0:01:41.4]} 19. Rab1 {[%clk 0:01:48.6]} 19...
Nf4 {[%clk 0:01:37.3]} 20. Nxe5 {[%clk 0:01:43.5]} 20... Qc7 {[%clk 0:01:27]}
21. Nf3 {[%clk 0:01:20.4]} 21... Rfe8 {[%clk 0:01:23.9]} 22. bxc5 {[%clk
0:01:15.1]} 22... Nd7 {[%clk 0:01:10.1]} 23. Rfd1 {[%clk 0:01:02.6]} 23... Nxc5
{[%clk 0:01:10.4]} 24. Rxd8 {[%clk 0:01:02.2]} 24... Rxd8 {[%clk 0:01:11.3]} 25.
Rd1 {[%clk 0:01:00.4]} 25... Rxd1+ {[%clk 0:00:52.7]} 26. Qxd1 {[%clk
0:01:01.3]} 26... Ng6 {[%clk 0:00:45.4]} 27. Qd2 {[%clk 0:00:29.5]} 27... Ne5
{[%clk 0:00:39.9]} 28. Nxe5 {[%clk 0:00:28.7]} 28... Qxe5 {[%clk 0:00:40.8]} 29.
Qe3 {[%clk 0:00:18.2]} 29... b6 {[%clk 0:00:38.7]} 30. Qc1 {[%clk 0:00:15.6]}
30... g6 {[%clk 0:00:34.7]} 31. Qe1 {[%clk 0:00:15.3]} 31... h5 {[%clk
0:00:34.1]} 32. h4 {[%clk 0:00:14.6]} 32... Qd4 {[%clk 0:00:32.1]} 33. Qc1
{[%clk 0:00:11.7]} 33... Qxf2+ {[%clk 0:00:28.4]} 34. Kxf2 {[%clk 0:00:11.5]}
34... Nd3+ {[%clk 0:00:29.2]} 35. Ke3 {[%clk 0:00:10.3]} 35... Nxc1 {[%clk
0:00:30]} 36. Bb1 {[%clk 0:00:10.3]} 36... Bxc4 {[%clk 0:00:30.7]} 37. Nh1
{[%clk 0:00:08]} 37... Be6 {[%clk 0:00:28.2]} 38. Nf2 {[%clk 0:00:08.1]} 38...
Nb3 {[%clk 0:00:26.4]} 39. Nd3 {[%clk 0:00:08.3]} 39... a5 {[%clk 0:00:23.8]}
40. Nf4 {[%clk 0:00:08.2]} 40... Nc5 {[%clk 0:00:20.8]} 41. Nxe6 {[%clk
0:00:07.8]} 41... Nxe6 {[%clk 0:00:21.7]} 42. Ba2 {[%clk 0:00:07.9]} 42... Kf8
{[%clk 0:00:21.9]} 43. e5 {[%clk 0:00:07.6]} 43... Ke7 {[%clk 0:00:22.2]} 44.
Ke4 {[%clk 0:00:08.2]} 44... Nc7 {[%clk 0:00:21]} 45. Bc4 {[%clk 0:00:07.7]}
45... b5 {[%clk 0:00:21]} 46. Bd3 {[%clk 0:00:08.1]} 46... b4 {[%clk 0:00:21.4]}
47. axb4 {[%clk 0:00:08.6]} 47... axb4 {[%clk 0:00:22.3]} 48. Kd4 {[%clk
0:00:09.1]} 48... Ne6+ {[%clk 0:00:21.5]} 49. Kc4 {[%clk 0:00:09.5]} 49... Nf4
{[%clk 0:00:21.7]} 50. Bf1 {[%clk 0:00:09.8]} 50... Ke6 {[%clk 0:00:22.1]} 51.
g3 {[%clk 0:00:10.3]} 51... Nd5 {[%clk 0:00:20.6]} 52. Kd4 {[%clk 0:00:09]}
52... Nc7 {[%clk 0:00:12]} 53. Bc4+ {[%clk 0:00:08.6]} 53... Ke7 {[%clk
0:00:12.5]} 54. Kc5 {[%clk 0:00:07.3]} 54... Ne6+ {[%clk 0:00:12.2]} 55. Kxb4
{[%clk 0:00:07.7]} 55... Nd4 {[%clk 0:00:12.8]} 56. Bd3 {[%clk 0:00:03.8]} 56...
Nc6+ {[%clk 0:00:12.8]} 57. Kc5 {[%clk 0:00:03.5]} 57... Nxe5 {[%clk 0:00:13.7]}
58. Be2 {[%clk 0:00:03]} 58... Kf6 {[%clk 0:00:14.1]} 59. Kd4 {[%clk 0:00:03.5]}
59... Nd7 {[%clk 0:00:13]} 60. Ke4 {[%clk 0:00:04.1]} 60... Ke7 {[%clk
0:00:12.8]} 61. Kf4 {[%clk 0:00:04.6]} 61... f6 {[%clk 0:00:12.7]} 62. g4 {[%clk
0:00:05.1]} 62... hxg4 {[%clk 0:00:11.9]} 63. Bxg4 {[%clk 0:00:05.8]} 63... Ne5
{[%clk 0:00:12.6]} 64. Be2 {[%clk 0:00:04.7]} 64... Kf7 {[%clk 0:00:13.1]} 65.
Bd1 {[%clk 0:00:03.9]} 65... Kg7 {[%clk 0:00:13.4]} 66. Bb3 {[%clk 0:00:03.9]}
66... Kh6 {[%clk 0:00:13.6]} 67. Bd1 {[%clk 0:00:04.5]} 67... Nf7 {[%clk
0:00:12.9]} 68. Be2 {[%clk 0:00:04.8]} 68... Ne5 {[%clk 0:00:12.7]} 69. Bd1
{[%clk 0:00:05.1]} 69... Nd3+ {[%clk 0:00:13.2]} 70. Ke3 {[%clk 0:00:05.1]}
70... Nc5 {[%clk 0:00:13.6]} 71. Kf4 {[%clk 0:00:04.4]} 71... Ne6+ {[%clk
0:00:14.1]} 72. Ke3 {[%clk 0:00:04.2]} 72... Ng7 {[%clk 0:00:14.8]} 73. Kf4
{[%clk 0:00:04.3]} 73... Nf5 {[%clk 0:00:15.5]} 74. Bc2 {[%clk 0:00:03.5]} 74...
Nxh4 {[%clk 0:00:15.2]} 75. Kg4 {[%clk 0:00:04.1]} 75... g5 {[%clk 0:00:13.3]}
0-1

[Event "Early-Titled-Tuesday-Blitz-January-30-2024"]
[Site "Chess.com"]
[Date "2024.01.30"]
[Round "5"]
[White "AustinThomas12345"]
[Black "IMRosen"]
[Result "0-1"]
[WhiteElo "2503"]
[BlackElo "2726"]
[TimeControl "180+1"]
[EndTime "8:59:19 PST"]
[Termination "IMRosen won by checkmate"]

1. e4 {[%clk 0:03:00.9]} 1... c5 {[%clk 0:02:53.6]} 2. Nf3 {[%clk 0:02:59.2]}
2... Nc6 {[%clk 0:02:52.5]} 3. d4 {[%clk 0:02:58.7]} 3... cxd4 {[%clk
0:02:53.4]} 4. Nxd4 {[%clk 0:02:58.4]} 4... g6 {[%clk 0:02:49.1]} 5. Nc3 {[%clk
0:02:51.6]} 5... Bg7 {[%clk 0:02:46.6]} 6. Be3 {[%clk 0:02:51.5]} 6... Nf6
{[%clk 0:02:47.3]} 7. Bc4 {[%clk 0:02:51.5]} 7... O-O {[%clk 0:02:46.8]} 8. Bb3
{[%clk 0:02:51.6]} 8... Re8 {[%clk 0:02:46.5]} 9. O-O {[%clk 0:02:38]} 9... d6
{[%clk 0:02:41.2]} 10. f3 {[%clk 0:02:34.4]} 10... Na5 {[%clk 0:02:40.9]} 11.
Qd3 {[%clk 0:02:20.9]} 11... b6 {[%clk 0:02:36.7]} 12. Ba4 {[%clk 0:02:13.7]}
12... Bd7 {[%clk 0:02:32.5]} 13. Bxd7 {[%clk 0:02:12.1]} 13... Nxd7 {[%clk
0:02:28.1]} 14. Rad1 {[%clk 0:01:54.2]} 14... Ne5 {[%clk 0:02:26.9]} 15. Qb5
{[%clk 0:01:45.4]} 15... Nac4 {[%clk 0:02:21.4]} 16. Bc1 {[%clk 0:01:44.4]}
16... a6 {[%clk 0:02:21.7]} 17. Qb3 {[%clk 0:01:34.2]} 17... b5 {[%clk
0:02:12.4]} 18. f4 {[%clk 0:01:25.7]} 18... Nd7 {[%clk 0:01:49.3]} 19. Nd5
{[%clk 0:01:20.8]} 19... e6 {[%clk 0:01:35.1]} 20. Nc6 {[%clk 0:01:06.9]} 20...
Qh4 {[%clk 0:00:58.8]} 21. Nc7 {[%clk 0:01:07.1]} 21... Rec8 {[%clk 0:00:22.1]}
22. Nxa8 {[%clk 0:01:07.1]} 22... Rxc6 {[%clk 0:00:21]} 23. a4 {[%clk
0:00:34.8]} 23... Qd8 {[%clk 0:00:19.3]} 24. axb5 {[%clk 0:00:35]} 24... axb5
{[%clk 0:00:20.2]} 25. Qxb5 {[%clk 0:00:35.9]} 25... Qxa8 {[%clk 0:00:20.2]} 26.
b3 {[%clk 0:00:35]} 26... Qa7+ {[%clk 0:00:13.8]} 27. Kh1 {[%clk 0:00:33.9]}
27... Rc5 {[%clk 0:00:11.4]} 28. Qb4 {[%clk 0:00:26]} 28... Ncb6 {[%clk
0:00:10.6]} 29. Rxd6 {[%clk 0:00:23.6]} 29... Qc7 {[%clk 0:00:09.1]} 30. e5
{[%clk 0:00:17]} 30... Rxc2 {[%clk 0:00:09.2]} 31. Be3 {[%clk 0:00:17.6]} 31...
Nd5 {[%clk 0:00:05.2]} 32. Qe4 {[%clk 0:00:15.1]} 32... Bf8 {[%clk 0:00:04.3]}
33. Rxd5 {[%clk 0:00:13.6]} 33... exd5 {[%clk 0:00:04.5]} 34. Qxd5 {[%clk
0:00:14.5]} 34... Qc6 {[%clk 0:00:04.3]} 35. Qxc6 {[%clk 0:00:13.9]} 35... Rxc6
{[%clk 0:00:05.2]} 36. Rd1 {[%clk 0:00:14.3]} 36... Bc5 {[%clk 0:00:04.5]} 37.
Bc1 {[%clk 0:00:13.2]} 37... Bb6 {[%clk 0:00:04.3]} 38. Bb2 {[%clk 0:00:13.1]}
38... Nc5 {[%clk 0:00:04.7]} 39. b4 {[%clk 0:00:13]} 39... Na4 {[%clk 0:00:05]}
40. Ba1 {[%clk 0:00:12.9]} 40... Rc4 {[%clk 0:00:04.6]} 41. b5 {[%clk
0:00:11.6]} 41... Rxf4 {[%clk 0:00:04.7]} 42. g3 {[%clk 0:00:10.7]} 42... Rb4
{[%clk 0:00:05]} 43. Rc1 {[%clk 0:00:11.1]} 43... Kf8 {[%clk 0:00:04.1]} 44. Rc6
{[%clk 0:00:08.1]} 44... Rxb5 {[%clk 0:00:04.1]} 45. Bc3 {[%clk 0:00:07.4]}
45... Nxc3 {[%clk 0:00:04.1]} 46. Rxc3 {[%clk 0:00:08.3]} 46... Rxe5 {[%clk
0:00:04.3]} 47. Rc8+ {[%clk 0:00:08.4]} 47... Ke7 {[%clk 0:00:04.3]} 48. Rb8
{[%clk 0:00:09.3]} 48... Bc5 {[%clk 0:00:04.5]} 49. Rb7+ {[%clk 0:00:10]} 49...
Kf6 {[%clk 0:00:05.1]} 50. Rc7 {[%clk 0:00:10.6]} 50... g5 {[%clk 0:00:05.1]}
51. Rc6+ {[%clk 0:00:11.3]} 51... Kg7 {[%clk 0:00:04.4]} 52. Rc8 {[%clk
0:00:12.1]} 52... g4 {[%clk 0:00:04.7]} 53. Kg2 {[%clk 0:00:13]} 53... Rd5
{[%clk 0:00:03.6]} 54. h3 {[%clk 0:00:12.9]} 54... h5 {[%clk 0:00:04]} 55. hxg4
{[%clk 0:00:13.3]} 55... hxg4 {[%clk 0:00:04.9]} 56. Rc6 {[%clk 0:00:14]} 56...
f6 {[%clk 0:00:05.1]} 57. Rc7+ {[%clk 0:00:14.1]} 57... Kg6 {[%clk 0:00:05.8]}
58. Rc8 {[%clk 0:00:15]} 58... Bd6 {[%clk 0:00:06]} 59. Rh8 {[%clk 0:00:15.4]}
59... Kf5 {[%clk 0:00:06.7]} 60. Rh5+ {[%clk 0:00:15.3]} 60... Ke4 {[%clk
0:00:07.4]} 61. Rh4 {[%clk 0:00:14.9]} 61... Rd2+ {[%clk 0:00:07.9]} 62. Kf1
{[%clk 0:00:15.5]} 62... Kf3 {[%clk 0:00:08.2]} 63. Ke1 {[%clk 0:00:15.6]} 63...
Bb4 {[%clk 0:00:08.5]} 64. Rh8 {[%clk 0:00:13.7]} 64... Rd4+ {[%clk 0:00:08.6]}
65. Kf1 {[%clk 0:00:14.3]} 65... Rd1# {[%clk 0:00:09.2]} 0-1

[Event "Early-Titled-Tuesday-Blitz-January-30-2024"]
[Site "Chess.com"]
[Date "2024.01.30"]
[Round "5"]
[White "the_chess_child"]
[Black "jeetjain"]
[Result "1-0"]
[WhiteElo "2876"]
[BlackElo "2543"]
[TimeControl "180+1"]
[EndTime "8:59:21 PST"]
[Termination "the_chess_child won on time"]

1. e4 {[%clk 0:03:00.9]} 1... c6 {[%clk 0:02:47.7]} 2. d3 {[%clk 0:03:00.6]}
2... d5 {[%clk 0:02:47]} 3. Nd2 {[%clk 0:03:00.8]} 3... g6 {[%clk 0:02:44.3]} 4.
Ngf3 {[%clk 0:03:00.8]} 4... Bg7 {[%clk 0:02:44.5]} 5. g3 {[%clk 0:03:01.1]}
5... Bg4 {[%clk 0:02:44.6]} 6. Bg2 {[%clk 0:03:01]} 6... e6 {[%clk 0:02:44.8]}
7. h3 {[%clk 0:03:01]} 7... Bxf3 {[%clk 0:02:44.8]} 8. Qxf3 {[%clk 0:03:01.5]}
8... Ne7 {[%clk 0:02:45.3]} 9. O-O {[%clk 0:03:01.5]} 9... Nd7 {[%clk
0:02:45.8]} 10. Qe2 {[%clk 0:02:59.7]} 10... Qb6 {[%clk 0:02:43]} 11. c3 {[%clk
0:02:59.2]} 11... O-O {[%clk 0:02:42.9]} 12. Re1 {[%clk 0:02:56.1]} 12... a5
{[%clk 0:02:40.9]} 13. Nf3 {[%clk 0:02:47.9]} 13... a4 {[%clk 0:02:40.5]} 14. a3
{[%clk 0:02:46.7]} 14... e5 {[%clk 0:02:38.7]} 15. Bg5 {[%clk 0:02:40.4]} 15...
f6 {[%clk 0:02:38.5]} 16. Be3 {[%clk 0:02:40.1]} 16... Qc7 {[%clk 0:02:36.3]}
17. Rad1 {[%clk 0:02:36.6]} 17... Rae8 {[%clk 0:02:26.5]} 18. Qc2 {[%clk
0:02:33.5]} 18... b5 {[%clk 0:02:25.9]} 19. Bc1 {[%clk 0:02:24.2]} 19... f5
{[%clk 0:02:24.9]} 20. Ng5 {[%clk 0:02:12.8]} 20... Qd6 {[%clk 0:02:18.5]} 21.
c4 {[%clk 0:02:02.5]} 21... h6 {[%clk 0:02:15.2]} 22. Nf3 {[%clk 0:01:56]} 22...
fxe4 {[%clk 0:02:11.3]} 23. dxe4 {[%clk 0:01:54]} 23... d4 {[%clk 0:02:11.8]}
24. b4 {[%clk 0:01:32.5]} 24... axb3 {[%clk 0:02:03.4]} 25. Qxb3 {[%clk
0:01:32]} 25... Qe6 {[%clk 0:02:00.4]} 26. Nd2 {[%clk 0:01:30.1]} 26... Nc5
{[%clk 0:02:00]} 27. Qc2 {[%clk 0:01:26.8]} 27... Na4 {[%clk 0:01:50.5]} 28. Bb2
{[%clk 0:01:07.3]} 28... Nxb2 {[%clk 0:01:48.8]} 29. Qxb2 {[%clk 0:01:07.4]}
29... bxc4 {[%clk 0:01:39.6]} 30. Qa2 {[%clk 0:01:07]} 30... Nc8 {[%clk
0:01:16.1]} 31. Bf1 {[%clk 0:00:49.7]} 31... Nb6 {[%clk 0:01:09.9]} 32. Bxc4
{[%clk 0:00:40.6]} 32... Nxc4 {[%clk 0:01:09.2]} 33. Qxc4 {[%clk 0:00:41.5]}
33... Kh7 {[%clk 0:01:01.4]} 34. Qxe6 {[%clk 0:00:40.9]} 34... Rxe6 {[%clk
0:01:02.3]} 35. a4 {[%clk 0:00:37.8]} 35... c5 {[%clk 0:00:59.7]} 36. Nc4 {[%clk
0:00:37.6]} 36... Rb8 {[%clk 0:00:55.8]} 37. Rb1 {[%clk 0:00:36.9]} 37... Rb4
{[%clk 0:00:54.7]} 38. Rxb4 {[%clk 0:00:33.7]} 38... cxb4 {[%clk 0:00:55.6]} 39.
a5 {[%clk 0:00:32.4]} 39... Bf8 {[%clk 0:00:54.1]} 40. Kf1 {[%clk 0:00:30.7]}
40... Kg7 {[%clk 0:00:50.3]} 41. Ke2 {[%clk 0:00:30.8]} 41... Kf6 {[%clk
0:00:49.8]} 42. Kd3 {[%clk 0:00:30.8]} 42... g5 {[%clk 0:00:44]} 43. Ra1 {[%clk
0:00:29.1]} 43... Ra6 {[%clk 0:00:43.6]} 44. Nb6 {[%clk 0:00:26.6]} 44... Ke6
{[%clk 0:00:37]} 45. Kc4 {[%clk 0:00:26.6]} 45... Ra7 {[%clk 0:00:32.8]} 46. a6
{[%clk 0:00:21.4]} 46... Rc7+ {[%clk 0:00:20]} 47. Kb3 {[%clk 0:00:14]} 47...
Ra7 {[%clk 0:00:14.4]} 48. Ra5 {[%clk 0:00:11.1]} 48... Bd6 {[%clk 0:00:12.1]}
49. Nc8 {[%clk 0:00:09.8]} 49... Ra8 {[%clk 0:00:12.3]} 50. Nxd6 {[%clk
0:00:09.9]} 50... Kxd6 {[%clk 0:00:13.2]} 51. Kxb4 {[%clk 0:00:10.4]} 51... h5
{[%clk 0:00:11.9]} 52. Rd5+ {[%clk 0:00:09.3]} 52... Ke6 {[%clk 0:00:11.9]} 53.
Kb5 {[%clk 0:00:09]} 53... Rb8+ {[%clk 0:00:09.4]} 54. Kc6 {[%clk 0:00:09.3]}
54... Rb1 {[%clk 0:00:07.6]} 55. a7 {[%clk 0:00:09.5]} 55... Ra1 {[%clk
0:00:08.3]} 56. Kb6 {[%clk 0:00:10]} 56... Rb1+ {[%clk 0:00:06.4]} 57. Rb5
{[%clk 0:00:10]} 57... Ra1 {[%clk 0:00:06.2]} 58. Ra5 {[%clk 0:00:10.3]} 58...
Rb1+ {[%clk 0:00:06.8]} 59. Ka6 {[%clk 0:00:10.7]} 59... d3 {[%clk 0:00:05.5]}
60. a8=Q {[%clk 0:00:10.9]} 60... d2 {[%clk 0:00:06.4]} 61. Qe8+ {[%clk
0:00:11.1]} 61... Kf6 {[%clk 0:00:04.3]} 62. Qxe5+ {[%clk 0:00:11.3]} 62... Kf7
{[%clk 0:00:03.6]} 63. Qf5+ {[%clk 0:00:11.5]} 63... Ke8 {[%clk 0:00:02.4]} 64.
Qe6+ {[%clk 0:00:11.7]} 64... Kf8 {[%clk 0:00:02]} 65. Rf5+ {[%clk 0:00:11.7]}
1-0